bitfinex/quotes_SOLUSD_20220103
["timestamp","ask_amount","ask_price","bid_price","bid_amount"]
[1641180694623,22.24298033,173.47,173.46,4.394]
[1641180699629,21.98298033,173.47,173.46,4.394]
[1641180703736,18.9178761,173.47,173.46,4.394]
[1641180703935,18.9178761,173.47,173.46,4.654]
[1641180704638,21.50675293,173.47,173.46,4.654]
[1641180705237,22.00675293,173.47,173.46,4.654]
[1641180705639,21.50675293,173.47,173.46,4.394]
[1641180705837,22.00675293,173.47,173.46,4.394]
[1641180708757,22.00675293,173.47,173.33,1.2375]
[1641180708758,31.0,173.46,173.33,1.2375]
[1641180708959,31.0,173.46,173.32,1.3427]
[1641180708960,8.6532,173.4,173.32,1.3427]
[1641180709157,8.6532,173.4,173.31,4.86897909]
[1641180709357,8.6532,173.4,173.28,4.86897909]
[1641180709759,2.21347865,173.39,173.29,26.93501196]
[1641180709959,2.21347865,173.39,173.31,8.6532]
[1641180710358,2.21347865,173.39,173.31,8.9132]
[1641180710763,2.21347865,173.39,173.31,8.6532]
[1641180711360,8.653,173.38,173.31,8.6532]
[1641180712060,8.653,173.38,173.3,8.6535]
[1641180712662,8.653,173.38,173.3,8.9135]
[1641180714065,8.653,173.38,173.3,8.6535]
[1641180715564,8.653,173.38,173.3,8.9135]
[1641180722467,2.43200957,173.37,173.3,8.9135]
[1641180722668,11.08550957,173.37,173.3,8.9135]
[1641180723269,11.08550957,173.37,173.3,8.6535]
[1641180723670,11.08550957,173.37,173.29,9.9569]
[1641180723871,11.08550957,173.37,173.28,4.86897909]
[1641180724872,11.08550957,173.37,173.28,0.26]
[1641180725171,11.08550957,173.37,173.27,1.4963]
[1641180725373,11.08550957,173.37,173.28,8.6544]
[1641180725571,11.08550957,173.37,173.28,8.9144]
[1641180725771,11.08550957,173.37,173.28,8.6544]
[1641180725974,11.08550957,173.37,173.27,1.2363]
[1641180726575,19.18550957,173.37,173.27,1.2363]
[1641180726775,19.68550957,173.37,173.27,1.2363]
[1641180726976,19.18550957,173.37,173.27,1.2363]
[1641180727375,1.3459,173.36,173.27,1.2363]
[1641180727574,11.7016304,173.32,173.27,1.2363]
[1641180727776,11.7016304,173.32,173.27,0.26]
[1641180728377,11.7016304,173.32,173.24,8.6563]
[1641180729877,11.7016304,173.32,173.24,8.9163]
[1641180731078,11.7016304,173.32,173.24,0.26]
[1641180731577,11.7016304,173.32,173.23,8.9167]
[1641180731779,11.7016304,173.32,173.23,8.6567]
[1641180732579,11.7016304,173.32,173.22,9.8762]
[1641180732781,12.2016304,173.32,173.22,1.219]
[1641180734280,12.2016304,173.32,173.22,1.479]
[1641180734487,8.6583,173.28,173.22,1.219]
[1641180734782,1.2966,173.31,173.21,6.50872109]
[1641180734979,1.7966,173.31,173.21,6.50872109]
[1641180735180,1.7966,173.31,173.21,1.639742]
[1641180735581,11.17652424,173.27,173.21,1.639742]
[1641180736080,11.17652424,173.27,173.21,1.899742]
[1641180736882,8.6588,173.27,173.21,10.558342]
[1641180739084,8.6588,173.27,173.21,1.639742]
[1641180741312,8.6588,173.27,173.21,1.899742]
[1641180743186,15.1708,173.27,173.21,1.639742]
[1641180743387,15.6708,173.27,173.21,1.639742]
[1641180744185,8.6613,173.24,173.21,1.639742]
[1641180744388,2.1694761,173.23,173.21,1.639742]
[1641180744587,2.87906169,173.22,173.21,1.639742]
[1641180745988,11.54136169,173.22,173.21,1.639742]
[1641180746590,12.84916169,173.22,173.21,1.639742]
[1641180747293,12.84916169,173.22,173.21,1.899742]
[1641180747895,12.84916169,173.22,173.21,1.639742]
[1641180749622,12.84916169,173.22,173.21,1.899742]
[1641180753817,8.6623,173.22,173.21,1.899742]
[1641180754816,11.24080362,173.22,173.21,1.899742]
[1641180755722,8.6623,173.22,173.21,1.899742]
[1641180755918,2.1694761,173.23,173.21,1.899742]
[1641180766435,11.3761682,173.24,173.22,0.86272387]
[1641180766637,8.66,173.24,173.22,0.86272387]
[1641180766837,8.6595,173.25,173.22,6.56172387]
[1641180767135,8.1,173.28,173.22,6.82172387]
[1641180767935,9.4293,173.28,173.22,6.82172387]
[1641180769036,9.4293,173.28,173.22,1.12272387]
[1641180769437,18.0874,173.28,173.22,9.52082387]
[1641180769640,18.0874,173.28,173.22,9.78082387]
[1641180781577,8.6576,173.29,173.22,9.78082387]
[1641180781777,80.0194,173.34,173.22,9.78082387]
[1641180781979,78.7932,173.34,173.22,9.78082387]
[1641180782579,2.26040816,173.33,173.22,11.12312387]
[1641180783478,2.26040816,173.33,173.27,8.6554]
[1641180783878,2.26040816,173.33,173.27,8.9154]
[1641180786188,10.91620816,173.33,173.27,0.26]
[1641180786388,10.91620816,173.33,173.24,3.27443993]
[1641180786988,1.3542,173.32,173.24,3.27443993]
[1641180787188,2.73251525,173.29,173.23,3.27443993]
[1641180787787,2.73251525,173.29,173.22,8.6577]
[1641180787988,2.73251525,173.29,173.22,8.9177]
[1641180788487,11.39041525,173.29,173.22,8.9177]
[1641180789288,11.39041525,173.29,173.21,4.91418193]
[1641180789491,8.1,173.28,173.21,4.91418193]
[1641180789690,8.6596,173.26,173.21,4.91418193]
[1641180789890,2.38777274,173.25,173.21,4.91418193]
[1641180790092,2.38777274,173.25,173.21,1.639742]
[1641180790992,2.38777274,173.25,173.21,1.899742]
[1641180791992,11.04767274,173.25,173.21,1.899742]
[1641180792393,11.04767274,173.25,173.21,1.639742]
[1641180793819,11.04767274,173.25,173.21,1.899742]
[1641180801103,2.38777274,173.25,173.21,1.899742]
[1641180803732,5.37456007,173.15,173.13,4.86897909]
[1641180803932,4.80773281,173.14,173.13,4.86897909]
[1641180804336,4.80773281,173.14,173.05,1.17666465]
[1641180804936,13.47303281,173.14,173.03,4.86897909]
[1641180805134,13.97303281,173.14,173.0,44.02595712]
[1641180805334,91.42833281,173.14,173.0,44.02595712]
[1641180805934,8.6677,173.09,173.01,1.51075212]
[1641180806135,2.28990804,173.08,173.01,1.51075212]
[1641180806335,2.28990804,173.08,173.01,1.77075212]
[1641180807034,8.6677,173.09,173.01,1.77075212]
[1641180807235,8.6677,173.09,173.01,1.51075212]
[1641180808035,10.86502825,173.09,173.01,1.51075212]
[1641180808636,10.86502825,173.09,173.01,1.77075212]
[1641180813142,10.86502825,173.09,173.01,1.51075212]
[1641180814243,10.86502825,173.09,173.01,10.17815212]
[1641180814445,10.86502825,173.09,173.01,10.43815212]
[1641180815045,8.6677,173.09,173.02,30.90794518]
[1641180815545,9.3793,173.13,173.02,39.83474518]
[1641180815743,8.1,173.13,173.02,39.83474518]
[1641180816143,2.56117856,173.12,173.02,39.83474518]
[1641180817344,11.22717856,173.12,173.02,39.83474518]
[1641180821049,2.56117856,173.12,173.02,39.83474518]
[1641180822853,11.22707856,173.12,173.02,8.9268]
[1641180824554,19.32707856,173.12,173.02,8.9268]
[1641180824751,19.32707856,173.12,173.01,10.17825212]
[1641180824951,19.82707856,173.12,173.01,10.17825212]
[1641180825551,21.09467856,173.12,173.01,10.17825212]
[1641180825952,21.09467856,173.12,173.01,10.43825212]
[1641180830182,20.59467856,173.12,173.01,10.43825212]
[1641180837892,20.59467856,173.12,173.01,8.6675]
[1641180838091,20.59467856,173.12,172.98,4.86897909]
[1641180838892,27.30567856,173.12,172.99,1.52439044]
[1641180839292,27.30567856,173.12,172.98,4.86897909]
[1641180839494,27.56567856,173.12,172.98,4.86897909]
[1641180839694,1.42669368,173.11,172.98,4.86897909]
[1641180839894,8.67,173.05,172.98,4.86897909]
[1641180840297,2.19875658,173.04,172.97,2.08358717]
[1641180840495,2.19875658,173.04,172.96,17.07446903]
[1641180840696,2.19875658,173.04,172.96,8.40496903]
[1641180840903,18.96885658,173.04,172.96,8.40496903]
[1641180841297,18.96885658,173.04,172.94,4.86897909]
[1641180841497,1.2514,173.03,172.94,6.43662155]
[1641180842498,2.3157421,173.01,172.94,1.56764246]
[1641180842697,2.3157421,173.01,172.94,1.82764246]
[1641180845102,10.9872421,173.01,172.94,1.56764246]
[1641180845704,27.0,173.0,172.88,9.13776235]
[1641180845907,35.1,173.0,172.89,4.86897909]
[1641180846330,8.6747,172.95,172.82,95.3103]
[1641180846507,8.6747,172.95,172.82,94.0]
[1641180846802,8.1,172.96,172.81,8.7941]
[1641180846803,2.8273922,172.94,172.83,26.70434938]
[1641180847401,8.6754,172.94,172.83,35.38024938]
[1641180847803,8.1,172.96,172.83,35.38024938]
[1641180848607,10.84349438,172.95,172.83,35.38024938]
[1641180849004,87.60809438,172.95,172.83,35.38024938]
[1641180849203,166.04889438,172.95,172.83,35.38024938]
[1641180849405,1.3545,172.94,172.83,35.38024938]
[1641180849605,1.3545,172.94,172.83,35.64024938]
[1641180851907,10.0295,172.94,172.83,35.64024938]
[1641180855714,10.0295,172.94,172.83,35.38024938]
[1641180856916,1.3545,172.94,172.83,35.38024938]
[1641180857113,157.37389438,172.95,172.83,35.64024938]
[1641180857114,78.93309438,172.95,172.83,35.64024938]
[1641180857313,78.93309438,172.95,172.83,43.74024938]
[1641180857915,83.4646,173.04,172.84,1.42669368]
[1641180858115,79.7315,173.03,172.85,8.1]
[1641180858319,79.7315,173.03,172.94,29.06401128]
[1641180858521,79.7315,173.03,172.94,36.38401128]
[1641180859017,2.55822903,173.02,172.95,0.60025243]
[1641180860320,2.55822903,173.02,172.97,8.6692]
[1641180860519,2.55822903,173.02,172.97,8.9292]
[1641180860920,2.55822903,173.02,172.97,0.26]
[1641180861348,2.55822903,173.02,172.95,0.60025243]
[1641180861950,2.55822903,173.02,172.95,9.27065243]
[1641180862346,2.55822903,173.02,172.95,9.53065243]
[1641180865550,79.7315,173.03,172.95,9.53065243]
[1641180871758,79.7315,173.03,172.95,10.95734611]
[1641180872586,79.7315,173.03,172.95,9.53065243]
[1641180873460,8.6689,173.07,172.95,9.53065243]
[1641180873657,0.39823815,173.09,172.96,9.52669368]
[1641180873859,0.39823815,173.09,173.03,30.01862794]
[1641180874056,0.39823815,173.09,173.03,35.27962794]
[1641180874456,0.39823815,173.09,173.04,1.57095425]
[1641180874857,0.39823815,173.09,173.04,1.83095425]
[1641180875458,0.39823815,173.09,173.06,8.6647]
[1641180875858,0.39823815,173.09,173.06,8.9247]
[1641180876059,0.39823815,173.09,173.07,3.89492383]
[1641180876460,0.39823815,173.09,173.07,4.15492383]
[1641180877462,0.39823815,173.09,173.07,12.81952383]
[1641180879363,2.56771425,173.09,173.07,12.81952383]
[1641180879766,2.56771425,173.09,173.02,28.8823]
[1641180879962,2.56771425,173.09,173.0,36.9876]
[1641180880664,2.84108658,173.08,173.01,29.84292081]
[1641180880869,2.84108658,173.08,173.03,8.6665]
[1641180881065,2.84108658,173.08,173.03,8.9265]
[1641180881465,2.84108658,173.08,173.03,0.26]
[1641180881863,2.84108658,173.08,173.02,8.6673]
[1641180882065,2.84108658,173.08,173.02,8.9273]
[1641180882269,2.84108658,173.08,173.02,11.02425998]
[1641180883869,0.39823815,173.09,173.02,11.02425998]
[1641180884871,2.44490737,173.08,173.02,11.02425998]
[1641180890897,2.44490737,173.08,173.02,8.9273]
[1641180891699,2.44490737,173.08,173.02,10.83009411]
[1641180893901,0.39823815,173.09,173.02,10.83009411]
[1641180895107,3.04651878,173.09,173.02,10.83009411]
[1641180906207,0.39823815,173.09,173.02,10.83009411]
[1641180909019,0.39823815,173.09,173.02,14.10709361]
[1641180910309,2.25166054,173.08,173.02,13.84709361]
[1641180911610,2.25166054,173.08,173.02,14.10709361]
[1641180914513,0.39823815,173.09,173.02,14.10709361]
[1641180916317,2.7890606,173.09,173.02,14.10709361]
[1641180920819,0.39823815,173.09,173.02,14.10709361]
[1641180925445,0.39823815,173.09,173.03,20.0]
[1641180925646,0.39823815,173.09,173.06,8.6657]
[1641180926048,2.1694761,173.08,173.06,8.9257]
[1641180930767,2.1694761,173.08,173.06,9.78842387]
[1641180931268,0.39823815,173.09,173.06,9.78842387]
[1641180931866,2.6048996,173.09,173.06,9.78842387]
[1641180933270,0.39823815,173.09,173.06,9.78842387]
[1641180933470,0.39823815,173.09,173.07,3.03219996]
[1641180933870,0.39823815,173.09,173.07,3.29219996]
[1641180934069,0.39823815,173.09,173.07,11.95749996]
[1641180936478,0.39823815,173.09,173.08,36.86272387]
[1641180936876,0.39823815,173.09,173.08,37.12272387]
[1641180940197,2.56771425,173.09,173.08,36.0]
[1641180941406,0.39823815,173.09,173.08,39.89492383]
[1641180941607,0.39823815,173.09,173.08,40.15492383]
[1641180952315,2.90492639,173.09,173.08,40.15492383]
[1641180952914,0.39823815,173.09,173.08,40.15492383]
[1641180957824,5.37927847,173.09,173.08,36.26]
[1641180958024,2.56771425,173.09,173.08,36.26]
[1641180958223,0.39823815,173.09,173.08,36.26]
[1641180958924,0.39823815,173.09,173.08,37.12272387]
[1641180959626,0.39823815,173.09,173.08,40.15492383]
[1641180964929,0.39823815,173.09,173.08,37.12272387]
[1641180965529,2.56771425,173.09,173.08,36.26]
[1641180966728,2.56771425,173.09,173.08,0.26]
[1641180966930,2.56771425,173.09,173.06,8.9257]
[1641180967128,2.56771425,173.09,173.06,0.26]
[1641180967530,2.56771425,173.09,173.07,3.89492383]
[1641180967731,2.56771425,173.09,173.05,8.9261]
[1641180968734,2.56771425,173.09,173.05,8.8333885]
[1641180969128,2.62874204,173.08,173.05,8.8333885]
[1641180969330,2.62874204,173.08,173.03,20.0]
[1641180970534,11.29664204,173.08,173.03,20.26]
[1641180973343,11.29664204,173.08,173.03,20.0]
[1641180974659,11.29664204,173.08,173.03,20.26]
[1641180974860,11.29664204,173.08,173.03,20.0]
[1641180975459,19.39664204,173.08,173.03,20.0]
[1641180976459,23.82091824,173.13,173.03,20.26]
[1641180976659,33.27451824,173.13,173.03,20.26]
[1641180976860,33.53451824,173.13,173.03,20.26]
[1641180977460,42.20431824,173.13,173.03,20.26]
[1641180977959,42.20431824,173.13,173.04,2.23077359]
[1641180978160,42.20431824,173.13,173.04,2.49077359]
[1641180978161,20.94431824,173.13,173.04,2.49077359]
[1641180979059,18.1234,173.13,173.04,7.84077359]
[1641180979262,8.6698,173.13,173.04,16.50747359]
[1641180979460,74.5826,173.14,173.04,16.50747359]
[1641180980764,83.2475,173.14,173.04,16.50747359]
[1641180981967,1.2521,173.13,173.04,16.50747359]
[1641180982170,9.9175,173.13,173.04,16.50747359]
[1641180983074,9.9175,173.13,173.04,11.15747359]
[1641180984574,2.1921112,173.12,173.04,11.15747359]
[1641180984973,10.8580112,173.12,173.04,11.15747359]
[1641180988580,10.8580112,173.12,173.04,10.89747359]
[1641180989480,10.8580112,173.12,173.04,8.6667]
[1641180989983,10.8580112,173.12,173.04,8.9267]
[1641180994413,10.8580112,173.12,173.04,0.26]
[1641180994616,10.8580112,173.12,173.03,30.2409]
[1641180998613,1.2554,173.11,173.03,30.2409]
[1641180998816,8.6673,173.1,173.03,30.2409]
[1641180999017,2.19141251,173.09,173.03,30.2409]
[1641180999614,2.19141251,173.09,173.03,28.9272]
[1641181003126,10.85881251,173.09,173.03,28.9272]
[1641181004427,10.85881251,173.09,173.03,20.26]
[1641181005530,10.85881251,173.09,173.03,20.0]
[1641181007131,10.85881251,173.09,173.03,20.26]
[1641181009033,25.04381251,173.09,173.03,20.0]
[1641181010937,25.04381251,173.09,173.03,20.26]
[1641181011361,25.04381251,173.09,173.03,20.0]
[1641181012336,26.30691251,173.09,173.03,20.0]
[1641181012937,26.30691251,173.09,173.03,20.26]
[1641181015038,20.22191251,173.09,173.03,20.26]
[1641181015837,18.0305,173.09,173.03,20.26]
[1641181016036,1.6362249,173.12,173.03,28.9271]
[1641181016236,1.6362249,173.12,173.03,35.2791]
[1641181016838,2.55451632,173.11,173.03,35.2791]
[1641181017645,2.55451632,173.11,173.03,28.9271]
[1641181018439,11.22091632,173.11,173.03,28.9271]
[1641181024352,8.6677,173.09,173.03,28.9271]
[1641181025257,2.58858934,173.08,173.03,28.9271]
[1641181026476,11.25678934,173.08,173.03,20.0]
[1641181026876,11.75678934,173.08,173.03,20.0]
[1641181027282,8.1,173.07,173.03,20.0]
[1641181027479,8.671,173.05,173.03,20.0]
[1641181027778,5.10518427,173.04,173.03,20.0]
[1641181027978,5.60518427,173.04,173.03,20.0]
[1641181028378,5.10518427,173.04,173.03,20.0]
[1641181028579,5.60518427,173.04,173.03,20.0]
[1641181028779,5.60518427,173.04,173.03,14.4449]
[1641181029180,2.6694761,173.04,173.03,0.0001]
[1641181029381,11.3403761,173.04,172.96,2.72708141]
[1641181030082,10.8403761,173.04,172.96,2.72708141]
[1641181030779,2.48238303,173.03,172.96,2.72708141]
[1641181031180,8.671,173.02,172.96,2.72708141]
[1641181031382,8.671,173.02,172.96,2.98708141]
[1641181033083,8.671,173.02,172.96,11.65778141]
[1641181033285,150.6005,173.05,172.96,11.65778141]
[1641181033485,8.6703,173.04,172.96,11.65778141]
[1641181034891,8.6703,173.04,172.96,14.93478091]
[1641181038190,10.023,173.04,172.96,14.93478091]
[1641181039191,8.6703,173.04,172.96,14.93478091]
[1641181039390,9.4022,173.07,172.96,14.93478091]
[1641181039391,1.3022,173.07,172.96,16.36147459]
[1641181039592,8.1,173.09,172.96,16.36147459]
[1641181040196,1.3147,173.08,172.99,3.2769995]
[1641181040392,1.3147,173.08,173.01,8.6682]
[1641181040393,8.6684,173.07,173.01,8.6682]
[1641181040594,8.6684,173.07,173.01,8.9282]
[1641181043195,8.6684,173.07,173.01,0.26]
[1641181043395,8.6684,173.07,173.0,11.00176731]
[1641181043796,2.45479398,173.06,173.0,10.74176731]
[1641181043997,11.12389398,173.06,173.0,2.07286731]
[1641181045131,11.12389398,173.06,173.0,2.33286731]
[1641181048501,11.12389398,173.06,173.0,11.00166731]
[1641181048902,8.6691,173.06,173.0,11.00166731]
[1641181049502,8.6691,173.06,173.0,8.6688]
[1641181049701,16.7691,173.06,172.97,3.2769995]
[1641181049901,16.7691,173.06,172.93,4.86897909]
[1641181049902,1.42669368,173.05,172.93,8.14597859]
[1641181050102,8.6737,172.99,172.93,3.2769995]
[1641181050304,16.7737,172.99,172.93,3.2769995]
[1641181050701,2.69642385,172.98,172.93,3.2769995]
[1641181051101,2.69642385,172.98,172.93,3.5369995]
[1641181051302,2.69642385,172.98,172.93,0.26]
[1641181051504,2.69642385,172.98,172.92,2.85962233]
[1641181052305,8.6739,172.96,172.92,2.85962233]
[1641181053508,8.6739,172.96,172.92,0.26]
[1641181053915,8.6739,172.96,172.89,37.62514597]
[1641181054110,8.6735,172.97,172.89,37.62514597]
[1641181054715,8.6735,172.97,172.9,2.56707027]
[1641181055114,8.6735,172.97,172.9,2.82707027]
[1641181057123,8.6735,172.97,172.89,3.2769995]
[1641181057323,13.4475,172.97,172.88,11.9511995]
[1641181057522,13.4475,172.97,172.88,3.2769995]
[1641181057725,22.0475,172.97,172.88,3.2769995]
[1641181057922,22.3075,172.97,172.87,3.2769995]
[1641181058823,23.73419368,172.97,172.87,3.2769995]
[1641181059025,23.73419368,172.97,172.85,3.2769995]
[1641181059825,8.6772,172.91,172.84,2.90868082]
[1641181060025,8.6772,172.91,172.83,3.2769995]
[1641181060645,8.6772,172.91,172.83,3.5369995]
[1641181061042,8.6772,172.91,172.84,2.80497514]
[1641181061043,2.35949972,172.9,172.84,2.80497514]
[1641181061443,2.35949972,172.9,172.84,3.06497514]
[1641181062245,11.03649972,172.9,172.84,0.26]
[1641181062643,11.03649972,172.9,172.83,12.2137995]
[1641181063447,11.03649972,172.9,172.83,11.9537995]
[1641181064148,11.03649972,172.9,172.83,3.2769995]
[1641181064747,11.03649972,172.9,172.81,3.02512315]
[1641181064948,11.03649972,172.9,172.82,0.26]
[1641181065148,11.03649972,172.9,172.81,3.28512315]
[1641181066251,11.03649972,172.9,172.8,8.6783]
[1641181066449,11.03649972,172.9,172.75,63.07649024]
[1641181066450,8.1,172.89,172.75,63.07649024]
[1641181066666,8.6807,172.83,172.75,2.5818]
[1641181066853,8.6807,172.83,172.74,9.42665124]
[1641181067251,2.74281549,172.82,172.74,2.16168232]
[1641181067852,2.74281549,172.82,172.74,2.42168232]
[1641181069452,2.74281549,172.82,172.76,8.6801]
[1641181069652,2.74281549,172.82,172.77,2.6382664]
[1641181070053,2.74281549,172.82,172.77,2.8982664]
[1641181070857,2.74281549,172.82,172.78,3.2769995]
[1641181071054,2.74281549,172.82,172.78,3.5369995]
[1641181071384,8.6803,172.84,172.78,3.5369995]
[1641181071753,8.6803,172.84,172.79,3.2769995]
[1641181071954,8.6803,172.84,172.79,3.5369995]
[1641181072254,11.41751405,172.84,172.79,3.5369995]
[1641181072453,11.41751405,172.84,172.79,3.2769995]
[1641181073457,11.41751405,172.84,172.76,5.56958797]
[1641181073854,11.41751405,172.84,172.76,5.82958797]
[1641181074257,11.41751405,172.84,172.77,3.2769995]
[1641181074656,11.41751405,172.84,172.77,3.5369995]
[1641181076661,11.41751405,172.84,172.77,3.2769995]
[1641181076860,11.91751405,172.84,172.77,3.2769995]
[1641181077665,11.91751405,172.84,172.74,3.2769995]
[1641181078470,13.22651405,172.84,172.74,3.5369995]
[1641181079485,13.22651405,172.84,172.74,3.0369995]
[1641181080090,8.1,172.83,172.74,3.0369995]
[1641181080290,8.6829,172.79,172.74,3.0369995]
[1641181080488,2.22046744,172.78,172.74,3.0369995]
[1641181081294,2.22046744,172.78,172.74,0.26]
[1641181081494,10.90366744,172.78,172.7,7.8135982]
[1641181082294,10.90366744,172.78,172.7,11.20563822]
[1641181083094,10.90366744,172.78,172.7,8.26101911]
[1641181083494,10.90366744,172.78,172.7,4.86897909]
[1641181083996,10.90366744,172.78,172.7,7.76939584]
[1641181085896,10.90366744,172.78,172.7,8.02939584]
[1641181086918,10.90366744,172.78,172.7,3.16041675]
[1641181087216,10.90366744,172.78,172.7,2.90041675]
[1641181087422,10.90366744,172.78,172.69,4.86897909]
[1641181088317,10.90366744,172.78,172.69,7.76653698]
[1641181088517,10.90366744,172.78,172.69,2.89755789]
[1641181090020,10.90366744,172.78,172.69,11.84115789]
[1641181091629,10.90366744,172.78,172.69,3.15755789]
[1641181092023,19.00366744,172.78,172.69,0.26]
[1641181092425,26.95466744,172.78,172.67,4.86897909]
[1641181092825,1.24,172.77,172.67,4.86897909]
[1641181093026,2.33880918,172.72,172.66,27.66648392]
[1641181093428,2.33880918,172.72,172.64,8.686]
[1641181093824,2.33880918,172.72,172.64,10.11269368]
[1641181094426,2.33880918,172.72,172.65,34.43901923]
[1641181094626,2.33880918,172.72,172.65,43.38431923]
[1641181094825,1.321,172.74,172.66,1.42669368]
[1641181095027,1.321,172.74,172.66,1.68669368]
[1641181095726,16.7844,172.76,172.66,10.37149368]
[1641181095927,2.94375281,172.75,172.66,10.37149368]
[1641181096427,2.94375281,172.75,172.66,13.70236005]
[1641181096630,2.94375281,172.75,172.67,1.42669368]
[1641181097029,11.62865281,172.75,172.67,1.68669368]
[1641181098750,12.87025281,172.75,172.66,10.91845418]
[1641181099353,12.87025281,172.75,172.66,7.58758781]
[1641181100151,12.87025281,172.75,172.66,5.12897909]
[1641181100362,12.87025281,172.75,172.66,4.86897909]
[1641181100551,20.97025281,172.75,172.66,4.86897909]
[1641181100755,20.97025281,172.75,172.64,4.86897909]
[1641181101059,21.47025281,172.75,172.64,4.86897909]
[1641181101252,21.47025281,172.75,172.65,2.51341592]
[1641181101867,21.47025281,172.75,172.59,2.77849368]
[1641181102054,148.6765,172.74,172.59,2.77849368]
[1641181102253,8.6869,172.72,172.6,1.42669368]
[1641181102454,8.6869,172.72,172.6,33.36825669]
[1641181102854,11.53242671,172.72,172.61,2.16419816]
[1641181103056,1.3049,172.71,172.61,2.42419816]
[1641181103459,1.3049,172.71,172.61,11.11129816]
[1641181103860,9.9921,172.71,172.61,11.11129816]
[1641181106161,1.3049,172.71,172.61,11.11129816]
[1641181108665,1.3049,172.71,172.61,2.16419816]
[1641181109968,1.3049,172.71,172.61,2.42419816]
[1641181110366,9.9924,172.71,172.61,2.42419816]
[1641181112270,9.9924,172.71,172.61,2.16419816]
[1641181113068,8.1,172.7,172.57,8.6888]
[1641181113268,20.42049121,172.6,172.55,4.86897909]
[1641181114271,0.05916032,172.6,172.56,2.26526731]
[1641181114467,0.05916032,172.6,172.53,36.41995282]
[1641181115468,0.05916032,172.6,172.54,2.83340082]
[1641181115771,0.05916032,172.6,172.54,11.52410082]
[1641181116772,0.05916032,172.6,172.54,11.78410082]
[1641181116970,0.05916032,172.6,172.54,11.52410082]
[1641181118373,2.39255532,172.6,172.54,11.78410082]
[1641181118771,0.00688052,172.6,172.55,56.0]
[1641181118981,0.00688052,172.6,172.57,8.6893]
[1641181119174,0.00688052,172.6,172.58,2.75192714]
[1641181119372,0.00688052,172.6,172.58,6.64685097]
[1641181119572,0.00688052,172.6,172.58,6.90685097]
[1641181120674,0.00688052,172.6,172.58,6.64685097]
[1641181121073,2.17635662,172.6,172.58,6.64685097]
[1641181121373,0.00688052,172.6,172.58,6.64685097]
[1641181121973,0.00688052,172.6,172.58,6.90685097]
[1641181122474,2.17635662,172.6,172.58,6.90685097]
[1641181122682,0.00688052,172.6,172.58,6.90685097]
[1641181123776,0.00688052,172.6,172.58,6.64685097]
[1641181124380,0.00688052,172.6,172.58,3.89492383]
[1641181124582,2.1694761,172.59,172.55,56.0]
[1641181124779,0.00688052,172.6,172.55,56.0]
[1641181125282,0.00688052,172.6,172.56,2.34717531]
[1641181126486,0.00688052,172.6,172.56,2.60717531]
[1641181128483,8.6915,172.62,172.56,2.34717531]
[1641181128684,8.6915,172.62,172.53,8.6915]
[1641181128884,8.6915,172.62,172.5,54.86897909]
[1641181129084,8.6915,172.62,172.5,50.0]
[1641181129586,8.6915,172.62,172.51,3.04680986]
[1641181129787,8.6925,172.6,172.51,3.04680986]
[1641181129983,8.6925,172.6,172.51,3.30680986]
[1641181130388,8.6925,172.6,172.51,0.26]
[1641181130583,8.6925,172.6,172.5,58.59946029]
[1641181131425,8.6925,172.6,172.51,2.30900824]
[1641181133121,8.6925,172.6,172.51,2.56900824]
[1641181134723,8.6925,172.6,172.51,11.26150824]
[1641181138128,8.6925,172.6,172.51,2.56900824]
[1641181138825,8.6925,172.6,172.5,58.60016029]
[1641181139028,8.6925,172.6,172.5,49.90706029]
[1641181139029,8.1,172.59,172.5,49.90706029]
[1641181139225,8.6945,172.56,172.5,49.90706029]
[1641181139424,8.1945,172.56,172.5,49.90706029]
[1641181139828,8.1,172.61,172.51,2.44882943]
[1641181140028,1.2832,172.6,172.51,9.32382943]
[1641181140228,1.2832,172.6,172.51,9.58382943]
[1641181141032,9.9755,172.6,172.51,9.58382943]
[1641181142228,9.9755,172.6,172.51,11.40132943]
[1641181144533,9.9755,172.6,172.51,2.70882943]
[1641181145537,9.9755,172.6,172.5,49.90706029]
[1641181145739,18.0755,172.6,172.5,49.90706029]
[1641181146537,18.5755,172.6,172.51,2.25571601]
[1641181146934,1.42669368,172.59,172.51,2.25571601]
[1641181147136,8.6945,172.56,172.51,2.51571601]
[1641181147334,8.6945,172.56,172.5,49.90706029]